bitfinex/quotes_ETHUSD_20240603
["timestamp","ask_amount","ask_price","bid_price","bid_amount"]
[1717424548721,0.61888196,3815.8,3815.7,1.871]
[1717424548916,0.54057226,3816.0,3815.7,1.871]
[1717424549158,0.54057226,3816.0,3815.7,2.3581]
[1717424549339,0.54057226,3816.1,3815.7,1.871]
[1717424549532,0.54057226,3816.2,3815.7,1.871]
[1717424549940,0.81034431,3816.3,3815.7,1.871]
[1717424549941,0.61880636,3816.1,3815.7,1.871]
[1717424550134,0.54057226,3816.1,3815.7,1.871]
[1717424550711,0.54057226,3816.3,3815.7,1.871]
[1717424550947,0.07820405,3816.2,3816.1,1.871]
[1717424551350,0.54057226,3816.4,3816.1,1.871]
[1717424551511,0.07820155,3816.3,3816.1,1.871]
[1717424551712,0.54057226,3816.4,3816.1,1.871]
[1717424552155,0.07820031,3816.3,3816.1,2.101542]
[1717424552353,0.54057226,3816.4,3816.1,2.101542]
[1717424552566,0.07820032,3816.3,3816.1,2.101542]
[1717424552853,0.54057226,3816.4,3816.1,2.101542]
[1717424553052,0.07820166,3816.3,3816.1,2.101542]
[1717424553349,0.54057226,3816.4,3816.1,1.871]
[1717424553508,0.07819296,3816.3,3816.1,1.871]
[1717424553717,0.54057226,3816.4,3816.1,1.871]
[1717424553946,0.07819479,3816.3,3816.1,1.871]
[1717424554247,0.54057226,3816.4,3815.9,1.871]
[1717424554450,0.54057226,3816.2,3815.9,1.871]
[1717424555124,0.81034431,3816.0,3815.5,4.871]
[1717424555322,0.54062349,3815.8,3815.5,4.871]
[1717424556373,0.07829708,3815.7,3815.5,4.871]
[1717424556665,0.54062349,3815.8,3815.5,4.871]
[1717424556985,0.54062349,3815.7,3814.9,7.41]
[1717424557111,0.54062349,3815.7,3814.4,14.8516]
[1717424557112,0.54062349,3815.5,3815.1,1.871]
[1717424557554,0.61894161,3815.4,3815.1,1.871]
[1717424557725,0.54062349,3815.4,3815.1,1.871]
[1717424558320,0.88870137,3815.6,3815.1,1.871]
[1717424558321,0.54062349,3815.3,3815.1,1.871]
[1717424558820,0.61898055,3815.3,3815.1,1.871]
[1717424559027,0.54062349,3815.3,3815.1,1.871]
[1717424559227,0.54062349,3815.4,3815.1,1.871]
[1717424559525,0.61899437,3815.3,3815.1,1.871]
[1717424559767,0.54062349,3815.3,3815.1,1.871]
[1717424559920,0.54062349,3815.4,3815.1,1.871]
[1717424560342,0.54062349,3815.5,3815.1,1.871]
[1717424562675,0.6189688,3815.4,3814.4,10.03162]
[1717424562880,0.54062349,3815.2,3814.7,1.871]
[1717424563086,0.6189688,3815.1,3814.7,1.871]
[1717424563302,0.54062349,3815.2,3814.7,1.871]
[1717424563611,0.81034431,3815.3,3814.7,1.871]
[1717424563612,0.61902419,3815.1,3814.7,1.871]
[1717424563772,0.54062349,3815.1,3814.7,1.871]
[1717424564111,0.07840474,3815.0,3814.7,1.871]
[1717424564458,0.54062349,3815.1,3814.7,1.871]
[1717424565104,0.07839235,3815.0,3814.7,1.871]
[1717424565402,0.54062349,3815.1,3814.7,1.871]
[1717424566419,0.81034431,3815.3,3814.5,3.0]
[1717424566420,0.61900427,3815.0,3814.5,3.0]
[1717424566569,0.07838078,3814.9,3814.5,3.0]
[1717424566972,0.54062349,3815.0,3814.5,3.0]
[1717424567176,0.07840652,3814.9,3814.5,3.0]
[1717424567370,0.54062349,3815.0,3814.5,3.0]
[1717424568059,0.07836979,3814.9,3814.0,10.03187]
[1717424568461,0.54062349,3814.6,3814.0,10.03187]
[1717424568967,0.07840247,3814.5,3814.0,10.03187]
[1717424569166,0.54062349,3814.6,3814.0,10.03187]
[1717424569352,0.54062349,3814.6,3814.1,3.1001437]
[1717424569557,0.07838281,3814.5,3814.1,3.1001437]
[1717424569755,0.54062349,3814.6,3814.1,3.1001437]
[1717424570493,0.54062349,3814.7,3814.1,3.1001437]
[1717424570666,0.07837146,3814.6,3814.1,3.1001437]
[1717424570874,0.61900732,3814.6,3814.1,3.1001437]
[1717424571076,0.54062349,3814.6,3814.1,3.1001437]
[1717424571499,0.54062349,3814.7,3814.1,3.1001437]
[1717424571657,0.07836301,3814.6,3814.1,3.1001437]
[1717424571859,0.54062349,3814.7,3814.1,3.1001437]
[1717424572094,0.07837954,3814.6,3814.1,3.1001437]
[1717424572296,0.54062349,3814.7,3814.1,3.1001437]
[1717424572599,0.07836863,3814.6,3814.1,3.1001437]
[1717424572808,0.54062349,3814.7,3814.1,3.1001437]
[1717424573005,0.61901443,3814.6,3814.1,3.1001437]
[1717424573194,0.54062349,3814.6,3814.1,3.1001437]
[1717424573362,1.55374035,3814.6,3814.1,0.1001437]
[1717424573976,2.12046193,3814.5,3814.1,0.1001437]
[1717424574425,1.55374035,3814.2,3814.1,0.1001437]
[1717424574712,0.64511011,3814.2,3814.1,0.08840597]
[1717424574874,2.09263475,3814.3,3814.1,0.08840597]
[1717424575069,1.01217567,3814.2,3814.1,0.08840597]
[1717424575285,1.01217567,3814.2,3814.1,0.05202418]
[1717424575518,2.33431489,3814.2,3814.1,0.05202418]
[1717424575821,3.41477397,3814.2,3814.1,0.05202418]
[1717424576369,2.33431489,3814.2,3814.1,0.05202418]
[1717424576885,1.01217567,3814.2,3814.1,0.05202418]
[1717424577421,4.17634704,3814.4,3814.1,0.05202418]
[1717424577729,5.50214556,3814.2,3814.1,0.05202418]
[1717424577907,7.29316023,3814.2,3814.1,0.05202418]
[1717424578070,8.37361931,3814.2,3814.1,0.05202418]
[1717424578274,7.29316023,3814.2,3814.1,0.05202418]
[1717424578512,7.73638249,3814.2,3814.1,0.05202418]
[1717424578978,7.84299015,3814.2,3814.1,0.05202418]
[1717424579175,8.92344923,3814.2,3814.1,0.05202418]
[1717424579487,8.92344923,3814.2,3814.1,0.01843103]
[1717424579488,12.19405298,3814.2,3814.1,0.01843103]
[1717424580001,2.62223,3813.6,3812.8,0.005]
[1717424580310,1.55387401,3813.3,3812.8,0.005]
[1717424580511,1.55387401,3813.2,3812.8,0.005]
[1717424581041,1.55369264,3813.3,3812.9,2.62267]
[1717424581172,1.55369264,3813.4,3812.9,2.62267]
[1717424581369,1.55369264,3813.5,3812.9,2.62267]
[1717424581815,0.56690144,3813.4,3812.9,2.62267]
[1717424582110,1.55404456,3813.6,3813.2,2.62245]
[1717424582322,1.55404456,3813.7,3813.5,2.62223]
[1717424582491,1.55404456,3813.8,3813.5,2.62223]
[1717424582687,1.55404456,3813.9,3813.5,2.62223]
[1717424582893,1.55404456,3814.2,3813.8,1.871]
[1717424583098,0.80781866,3814.8,3813.8,1.871]
[1717424583099,1.55404456,3814.3,3813.8,1.871]
[1717424583412,0.53854577,3814.8,3814.2,2.62171]
[1717424583413,1.55432911,3814.4,3814.2,2.62171]
[1717424584031,1.55432911,3814.5,3814.2,2.62171]
[1717424584217,1.55432911,3814.5,3813.8,2.62204]
[1717424584586,3.15980577,3815.0,3813.8,3.618004]
[1717424584587,1.55348305,3814.3,3813.8,3.618004]
[1717424584798,0.56675172,3814.4,3813.8,3.618004]
[1717424584799,1.55348305,3814.4,3813.8,3.618004]
[1717424586010,1.55348305,3814.4,3813.8,2.62204]
[1717424586405,2.12020964,3814.3,3813.8,2.62204]
[1717424586602,1.55348305,3814.3,3813.8,2.62204]
[1717424587965,1.55348305,3814.3,3814.1,2.6218]
[1717424588124,1.55348305,3814.4,3814.1,2.6218]
[1717424588457,1.55335213,3814.5,3814.4,2.62161]
[1717424589352,1.55335213,3814.5,3814.4,5.03831]
[1717424589507,1.55335213,3814.6,3814.4,9.90931]
[1717424589714,1.55401936,3814.7,3813.2,0.262245]
[1717424590038,1.55401936,3814.4,3813.9,2.62195]
[1717424590260,2.12070159,3814.3,3814.0,3.0]
[1717424590461,0.80781866,3814.9,3814.1,4.49285]
[1717424590462,1.55401936,3814.5,3814.1,4.49285]
[1717424590649,0.53854577,3814.9,3814.3,2.62171]
[1717424590650,1.55401936,3814.6,3814.3,2.62171]
[1717424590984,1.55401936,3814.6,3814.2,4.0358845]
[1717424590985,1.55401936,3814.9,3814.5,2.62157]
[1717424591134,1.55401936,3814.9,3814.5,4.49257]
[1717424591312,1.55401936,3815.0,3814.8,2.4167]
[1717424591514,1.55401936,3815.1,3814.8,2.4167]
[1717424591755,1.55401936,3815.3,3814.9,2.41267]
[1717424593166,1.55401936,3815.3,3814.9,5.03397]
[1717424593964,1.55401936,3815.4,3814.9,5.03397]
[1717424594163,1.55401936,3815.4,3815.2,2.62105]
[1717424594374,0.56654525,3815.6,3815.2,2.62105]
[1717424594375,1.55401936,3815.6,3815.2,2.62105]
[1717424595877,2.11967347,3815.5,3815.2,2.62105]
[1717424596025,2.11967347,3815.5,3814.8,4.2877]
[1717424596026,1.55313507,3815.4,3814.8,4.49233]
[1717424596379,1.55313507,3815.4,3814.9,3.0]
[1717424596741,1.55313507,3815.3,3814.8,2.62133]
[1717424596940,2.11967347,3815.3,3814.8,2.62133]
[1717424597170,2.11944473,3815.2,3814.8,2.62133]
[1717424597377,1.55286052,3815.3,3814.8,2.62133]
[1717424597741,2.09140629,3815.3,3814.8,2.62133]
[1717424598332,0.53854577,3815.3,3814.8,2.62133]
[1717424598562,0.61342656,3815.3,3814.8,2.62133]
[1717424599373,0.53854577,3815.5,3815.1,2.62113]
[1717424599891,0.64139977,3815.6,3815.1,2.62113]
[1717424599892,0.53854577,3815.6,3815.1,2.62113]
[1717424600091,0.61340182,3815.6,3815.0,1.871]
[1717424600565,0.53854577,3815.4,3815.0,1.871]
[1717424600746,0.53854577,3815.4,3814.8,3.0]
[1717424601379,0.53854577,3815.4,3814.9,2.62126]
[1717424601872,0.61340182,3815.3,3814.9,2.62126]
[1717424602063,0.07491646,3815.2,3814.9,2.62126]
[1717424602263,0.53854577,3815.2,3814.9,2.62126]
[1717424602578,0.61347526,3815.1,3814.9,2.62126]
[1717424602747,0.07492949,3815.0,3814.9,2.62126]
[1717424602948,0.53854577,3815.4,3815.3,2.62102]
[1717424603157,0.07493526,3815.4,3815.3,5.62102]
[1717424603525,0.53854577,3815.6,3815.3,7.49202]
[1717424603788,0.53854577,3815.8,3815.6,2.62077]
[1717424604354,0.53854577,3815.9,3815.6,2.62077]
[1717424605259,0.61338593,3815.9,3815.6,2.62077]
[1717424605464,0.07484016,3815.8,3815.6,2.62077]
[1717424605672,0.53854577,3815.9,3815.6,2.62077]
[1717424606394,0.61340354,3816.0,3815.6,2.62077]
[1717424606752,0.53854577,3816.0,3815.6,2.62077]
[1717424606951,0.61340354,3816.0,3815.6,2.62077]
[1717424607189,0.07485777,3815.9,3815.6,2.62077]
[1717424607487,0.53854577,3816.0,3815.6,2.62077]
[1717424607791,0.53854577,3816.0,3815.3,4.871]
[1717424608090,0.53854577,3816.0,3815.2,2.62104]
[1717424608091,0.53854577,3815.8,3815.2,2.62104]
[1717424608591,0.53854577,3815.7,3815.2,2.62104]
[1717424608975,0.61344493,3815.6,3815.2,2.62104]
[1717424609177,0.53854577,3815.6,3815.2,2.62104]
[1717424609559,0.6134506,3815.6,3815.2,2.62104]
[1717424610792,2.6605053,3815.7,3815.2,2.62104]
[1717424610994,0.61343791,3815.6,3815.2,2.62104]
[1717424611295,1.10509733,3815.7,3815.4,2.62095]
[1717424611500,0.53854577,3816.0,3815.6,2.62081]
[1717424611738,2.09395374,3816.1,3815.7,1.871]
[1717424611878,0.61334629,3816.0,3815.7,4.871]
[1717424612077,0.61334629,3816.0,3815.8,2.62068]
[1717424612294,2.09395374,3816.0,3815.8,2.62068]
[1717424612510,1.55540797,3816.1,3815.8,2.62068]
[1717424612896,0.56647638,3816.1,3815.8,2.62068]
[1717424613176,2.12126041,3816.1,3815.8,2.62068]
[1717424613381,2.12126041,3816.3,3815.8,2.62068]
[1717424613608,2.12123597,3816.3,3815.8,2.62068]
[1717424613882,2.0503514,3816.2,3815.8,2.62068]
[1717424614190,1.55470961,3816.2,3815.8,2.62068]
[1717424614392,1.55470961,3816.1,3815.8,2.62068]
[1717424614828,1.55470961,3816.2,3815.8,2.62068]
[1717424615123,0.53854577,3816.5,3816.1,2.62045]
[1717424615342,1.5546455,3816.3,3816.1,2.62045]
[1717424615735,1.5546455,3816.2,3815.3,2.62097]
[1717424616046,1.55444588,3815.8,3815.3,2.62097]
[1717424616186,0.53854577,3815.9,3814.5,2.2834]
[1717424616187,1.55444588,3815.7,3814.9,2.62127]
[1717424616386,1.55427261,3815.6,3815.2,2.62108]
[1717424616881,1.55427261,3815.6,3815.2,4.49208]
[1717424617122,1.55427261,3815.7,3815.2,4.49208]
[1717424618221,1.55427261,3815.6,3815.2,4.49208]
[1717424619292,1.55427261,3815.5,3815.2,4.9862107]
[1717424619486,1.55427261,3815.6,3815.2,4.49208]
[1717424619728,1.55427261,3815.7,3815.4,5.02595]
[1717424619891,1.55427261,3815.7,3815.6,4.49181]
[1717424620334,1.5541419,3815.7,3815.6,4.49181]
[1717424622004,1.5541419,3815.8,3815.6,4.49181]
[1717424622223,1.5541419,3815.9,3815.6,4.49181]
[1717424622415,1.5541419,3815.9,3815.8,2.62068]
[1717424624045,0.56645596,3815.9,3815.8,2.62068]
[1717424624238,1.55400811,3815.9,3815.8,2.62068]
[1717424624606,2.12046407,3815.9,3815.8,2.62068]
[1717424624813,1.55400811,3815.9,3815.8,2.62068]
[1717424625352,2.12046407,3815.9,3815.8,3.24768255]
[1717424625649,0.56645596,3815.9,3815.8,6.24768255]
[1717424625855,1.55400811,3816.0,3815.8,6.24768255]
[1717424625999,0.53854577,3816.2,3816.0,2.62054]
[1717424626000,1.55400811,3816.2,3816.0,2.62054]
[1717424626197,1.55400811,3816.2,3816.0,4.49154]
[1717424626650,0.53854577,3816.4,3816.0,4.49154]
[1717424627644,0.61328165,3816.4,3816.0,4.49154]
[1717424627846,0.07473588,3816.3,3816.0,4.49154]
[1717424628000,0.53854577,3816.4,3816.0,5.32188083]
[1717424628454,0.53854577,3816.3,3816.0,5.32188083]
[1717424628601,0.53854577,3816.3,3816.2,2.6204]
[1717424628797,0.07476676,3816.3,3816.2,2.6204]
[1717424628997,0.53854577,3816.6,3816.2,3.15257408]
[1717424629321,0.80781866,3816.7,3816.5,2.6202]
[1717424629522,0.54129532,3816.6,3816.5,2.6202]
[1717424629894,0.61602846,3816.6,3816.5,2.6202]
[1717424630208,0.61602846,3816.6,3816.5,3.12253741]
[1717424630209,0.07473314,3816.6,3816.5,3.12253741]
[1717424630448,1.62368819,3817.4,3816.5,3.12253741]
[1717424630449,1.62368819,3817.4,3816.9,2.61992]
[1717424630450,0.54131175,3817.0,3816.9,2.61992]
[1717424630625,0.07465849,3817.0,3816.9,4.49092]
[1717424630809,0.54131175,3817.2,3816.9,7.49092]
[1717424631014,0.54131175,3817.4,3817.1,2.61978]
[1717424631339,0.54131175,3817.4,3817.0,0.749092]
[1717424631340,0.54131175,3817.5,3817.3,1.871]
[1717424631502,0.54131175,3817.5,3817.0,5.61983]
[1717424631503,0.80781866,3817.5,3817.0,5.61983]
[1717424631703,0.54122293,3817.3,3817.0,5.61983]
[1717424631947,0.07461583,3817.2,3817.0,5.61983]
[1717424632236,0.54122293,3817.3,3817.0,5.61983]
[1717424632439,0.54122293,3817.4,3817.0,5.61983]
[1717424632822,0.61579347,3817.3,3817.0,5.61983]
[1717424633035,0.07457054,3817.2,3817.0,5.61983]
[1717424633545,0.61579347,3817.2,3817.0,2.61983]
[1717424633843,0.54122293,3817.2,3817.0,2.61983]
[1717424634043,3.97241965,3817.8,3817.0,2.61983]
[1717424634044,0.54122293,3817.3,3817.0,2.61983]
[1717424635043,0.0745696,3817.2,3817.0,2.61983]
[1717424635213,0.54122293,3817.3,3817.0,2.61983]
[1717424635938,0.54122293,3817.4,3817.0,3.068913]
[1717424636103,0.07453141,3817.3,3817.2,1.871]
[1717424636302,0.54122293,3817.4,3817.3,2.61965]
[1717424636503,0.07450652,3817.4,3817.3,2.61965]
[1717424636718,0.07451256,3817.4,3817.3,2.61965]
[1717424637319,0.54122293,3817.5,3817.3,2.61965]
[1717424637521,0.07450221,3817.4,3817.3,2.61965]
[1717424638246,0.54122293,3817.6,3817.3,2.61965]
[1717424638460,0.80781866,3817.7,3817.3,3.1136233]
[1717424638461,0.54122293,3817.7,3817.3,3.1136233]
[1717424638661,0.54122293,3817.9,3817.7,2.61937]
[1717424638804,0.07445332,3817.8,3817.7,2.61937]
[1717424639367,0.54122293,3818.0,3817.7,2.61937]
[1717424639580,0.07442031,3817.9,3817.7,2.61937]
[1717424639880,0.54122293,3818.0,3817.7,2.61937]
[1717424640163,0.07441762,3817.9,3817.7,2.61937]
[1717424640367,0.61568591,3817.8,3817.5,2.61951]
[1717424640663,0.07446298,3817.7,3817.5,2.61951]
[1717424640864,0.54122293,3817.9,3817.5,2.61951]
[1717424641074,0.0744392,3817.8,3817.5,2.61951]
[1717424641281,0.54122293,3817.9,3817.5,2.61951]
[1717424641490,0.07444126,3817.8,3817.5,2.61951]
[1717424641763,0.54122293,3817.9,3817.5,2.61951]
[1717424642002,0.54122293,3817.7,3817.5,2.61951]
[1717424642291,0.54122293,3817.7,3817.1,2.61975]
[1717424642696,0.6156912,3817.6,3817.1,2.61975]
[1717424643005,0.6156912,3817.5,3817.1,2.61975]
[1717424643163,0.07446827,3817.4,3817.1,2.61975]
[1717424643495,0.54122293,3817.5,3817.1,2.61975]
[1717424643646,0.54122293,3817.6,3817.1,2.61975]
[1717424643844,0.61571717,3817.5,3817.1,2.61975]
[1717424644102,0.54122293,3817.5,3817.1,2.61975]
[1717424644306,1.32213922,3817.4,3816.6,3.0]
[1717424644468,0.54020241,3817.1,3816.3,7.41]
[1717424644796,2.84050241,3816.9,3816.2,2.62035]
[1717424644954,2.84050241,3816.9,3815.8,10.03065]
[1717424644955,0.54020241,3816.6,3815.8,10.03065]
[1717424645148,0.07449492,3816.5,3815.8,10.03065]
[1717424645350,0.61485229,3816.5,3815.8,10.03065]
[1717424645559,0.54020241,3816.5,3815.8,10.03065]
[1717424645750,0.07465268,3816.4,3815.8,10.03065]
[1717424645994,0.54020241,3816.5,3815.8,10.03065]
[1717424646295,0.61485514,3816.4,3815.8,10.03065]
[1717424646477,0.07465273,3816.3,3815.8,10.03065]
[1717424646648,0.07465273,3816.3,3815.8,2.62065]
[1717424646851,0.54020241,3816.4,3815.8,2.62065]
[1717424647248,0.07466657,3816.3,3815.8,2.62065]
[1717424647450,0.6148877,3816.3,3815.8,2.62065]
[1717424647693,0.54020241,3816.3,3815.8,2.62065]
[1717424647988,0.54020241,3816.4,3815.8,2.62065]
[1717424648296,0.54020241,3816.4,3816.3,1.871]
[1717424648498,2.3457,3817.4,3815.8,0.449165]
[1717424648499,0.54020241,3816.9,3816.4,2.62027]
[1717424649208,0.54020241,3816.9,3816.2,1.871]
[1717424649353,0.54020241,3816.9,3815.4,2.2725]
[1717424649354,0.54020241,3816.5,3815.5,3.0]
[1717424649555,0.61478144,3816.4,3815.6,1.45535]
[1717424649751,0.61478144,3816.3,3815.6,1.45535]
[1717424649954,0.80781866,3816.5,3815.6,1.45535]
[1717424649955,0.54020241,3816.4,3815.6,1.45535]
[1717424650199,0.61488896,3816.3,3815.7,0.859885]
[1717424650351,0.54020241,3816.3,3815.7,3.859885]
[1717424651868,0.54020241,3816.2,3815.1,2.62114]
[1717424652064,0.54020241,3816.2,3815.4,5.62092]
[1717424652065,0.61489655,3816.2,3815.4,5.62092]
[1717424652394,0.61489655,3816.1,3815.4,5.62092]
[1717424652694,0.54020241,3816.1,3815.4,5.62092]
[1717424652908,0.54020241,3816.1,3815.4,6.370112]
[1717424654161,0.61492794,3816.1,3815.4,6.370112]
[1717424654393,0.07472553,3816.0,3815.4,6.370112]
[1717424654609,0.54020241,3816.1,3815.4,6.370112]
[1717424655612,0.6149162,3816.1,3815.4,6.370112]
[1717424655784,0.6149162,3816.1,3815.6,2.6208]
[1717424655785,0.07471379,3816.0,3815.6,2.6208]
[1717424655986,0.54020241,3816.1,3815.6,2.6208]
[1717424656601,0.61492552,3816.1,3815.6,2.6208]
[1717424656783,0.61492552,3816.0,3815.6,2.6208]
[1717424656999,0.54020241,3816.1,3815.9,2.62058]
[1717424657373,0.54020241,3816.1,3815.9,3.069738]
[1717424658390,0.61493223,3816.1,3815.9,3.069738]
[1717424658719,0.07472982,3816.0,3815.9,3.069738]
[1717424658876,0.54020241,3816.2,3815.9,2.62058]
[1717424659522,0.54020241,3816.1,3815.9,2.62058]
[1717424659723,0.61492661,3816.1,3815.9,2.62058]
[1717424660013,0.0747242,3816.0,3815.9,2.62058]
[1717424660187,0.54020241,3816.1,3815.9,2.62058]
[1717424660609,0.61492661,3816.1,3815.9,2.62058]
[1717424660808,0.0747242,3816.0,3815.9,2.62058]
[1717424660994,0.54020241,3816.1,3815.9,3.069738]
[1717424661178,0.54020241,3816.2,3815.9,3.069738]
[1717424661383,0.62102233,3817.0,3815.9,3.069738]
[1717424661384,0.54020241,3816.4,3816.2,2.62038]
[1717424661584,0.54020241,3816.4,3815.8,2.62062]
[1717424661785,2.93570241,3816.4,3815.8,2.62062]
[1717424662030,0.54020241,3816.0,3815.5,1.871]
[1717424662180,0.54020241,3816.0,3815.4,3.0]
[1717424662385,0.54020241,3815.7,3815.1,3.0]
[1717424662611,0.54020241,3815.7,3815.1,3.749217]
[1717424662823,0.8826347,3815.8,3815.1,3.749217]
[1717424662824,0.61501845,3815.6,3815.1,3.749217]
[1717424663036,0.07481604,3815.5,3815.1,3.749217]
[1717424663328,0.54020241,3815.6,3815.1,3.749217]
[1717424663486,0.6150116,3815.6,3815.1,3.749217]
[1717424663683,0.07480919,3815.5,3815.2,0.8241387]
[1717424663924,0.54020241,3815.6,3815.2,0.8241387]
[1717424664123,0.54020241,3815.6,3815.3,2.62101]
[1717424664339,0.54020241,3815.6,3815.4,4.871]
[1717424664496,0.61484984,3815.7,3815.5,2.62088]
[1717424664698,0.07463438,3815.6,3815.5,2.62088]
[1717424664913,0.07463438,3815.6,3815.5,5.62088]
[1717424665213,0.80781866,3815.9,3815.5,5.62088]
[1717424665214,0.54020241,3815.9,3815.5,5.62088]
[1717424665413,0.54020241,3815.9,3815.6,0.987318]
[1717424665734,0.54020241,3815.9,3815.7,2.62075]
[1717424666401,0.61477662,3815.9,3815.7,2.62075]
[1717424666598,0.07457421,3815.8,3815.7,2.62075]
[1717424666815,0.54020241,3815.9,3815.7,2.62075]
[1717424669237,0.54020241,3815.9,3815.7,3.27108448]
[1717424669745,0.54020241,3815.9,3815.5,3.0]
[1717424669947,0.54020241,3815.9,3815.2,2.62108]
[1717424670099,3.16082241,3815.9,3815.2,2.62108]
[1717424670294,3.72735467,3815.9,3814.8,2.6213]
[1717424670494,2.11903787,3815.8,3814.8,2.6213]
[1717424670930,2.62076,3815.7,3814.8,2.6213]
[1717424671149,4.73979787,3815.7,3814.8,2.6213]
[1717424671432,1.55214796,3815.4,3814.4,4.49261]
[1717424671632,0.56660354,3815.3,3814.4,4.49261]
[1717424671934,2.1187515,3815.3,3814.4,4.941871]
[1717424672111,1.55214796,3815.3,3814.4,4.941871]
[1717424672407,1.55214796,3815.3,3814.4,3.070871]
[1717424672613,1.55214796,3815.3,3814.4,4.941871]
[1717424673319,1.55214796,3815.2,3814.4,4.941871]
[1717424674531,2.1187515,3815.1,3814.4,4.941871]
[1717424674735,1.55214796,3815.1,3814.4,3.070871]
[1717424674940,2.16703519,3815.0,3814.4,2.62161]
[1717424675147,2.65895391,3815.0,3814.4,2.62161]
[1717424675499,0.07466229,3814.9,3814.4,2.62161]
[1717424675716,2.65895391,3815.0,3814.1,3.0]
[1717424675918,0.07465824,3814.9,3814.1,4.871]
[1717424676145,2.65895391,3815.0,3814.1,3.0]
[1717424676350,0.64125807,3814.9,3814.1,3.0]
[1717424676663,0.07464247,3814.8,3814.1,3.0]
[1717424676796,2.16699284,3814.8,3814.1,3.0]
[1717424677161,0.07464247,3814.7,3814.1,3.0]
[1717424678447,2.16699284,3814.7,3814.1,3.0]
[1717424678599,2.16699284,3814.7,3813.5,2.62221]
[1717424678600,4.5585341,3814.6,3813.5,2.62221]
[1717424678795,2.62171,3814.3,3813.5,2.62221]
[1717424679116,0.61484488,3814.2,3813.5,2.62221]
[1717424679359,0.10360799,3814.1,3813.1,4.4935]
[1717424679529,1.42574721,3814.1,3813.1,4.4935]
[1717424679726,1.86234163,3814.1,3813.1,4.4935]
[1717424679934,0.10356855,3814.0,3813.1,4.4935]
[1717424680145,3.41366861,3814.1,3813.2,3.0]
[1717424680297,1.86234163,3814.1,3813.2,3.0]
[1717424680660,0.10567553,3814.0,3813.1,2.6225]
[1717424680807,1.86234163,3814.1,3813.1,2.6225]
[1717424681005,0.10567763,3814.0,3813.1,2.6225]
[1717424681253,1.86234163,3814.1,3813.1,2.6225]
[1717424682141,2.3384,3814.0,3813.1,2.6225]
[1717424683216,6.28248922,3814.0,3813.1,2.6225]
[1717424684399,2.3384,3814.0,3813.4,2.62229]
[1717424684953,3.66053922,3814.0,3813.0,2.62256]
[1717424685109,3.66053922,3814.0,3813.1,3.0]
[1717424685855,2.62207,3813.8,3813.0,2.62256]
[1717424686056,1.32213922,3813.7,3812.8,0.005]
[1717424688342,2.62222,3813.6,3812.8,0.005]
[1717424688645,1.32213922,3813.5,3812.8,0.005]
[1717424691232,4.17373403,3813.6,3812.8,0.005]
[1717424691451,0.56693307,3813.5,3812.8,0.005]
[1717424691614,0.56693307,3813.5,3812.8,0.567783]
[1717424691828,2.62222,3813.6,3812.8,0.567783]
[1717424692168,2.11842682,3813.6,3812.9,2.62265]
[1717424692459,4.17364403,3813.7,3812.9,2.62265]
[1717424692604,5.49578325,3813.7,3812.9,2.62265]
[1717424692809,2.11841305,3813.6,3812.9,2.62265]
[1717424693458,0.56689902,3813.6,3812.9,2.62265]
[1717424693758,0.5668913,3813.6,3812.9,2.62265]
[1717424694452,0.5668913,3813.6,3812.9,5.056415]
[1717424694657,1.55151403,3813.7,3812.9,5.056415]
[1717424695651,1.32213922,3813.6,3812.9,2.62265]
[1717424695821,2.87365325,3813.5,3812.9,2.62265]
[1717424696023,2.87365325,3813.5,3812.8,0.005]
[1717424696229,2.11841479,3813.4,3812.8,0.005]
[1717424696448,2.11841479,3813.3,3812.8,0.005]
[1717424696825,0.56690076,3813.3,3812.8,0.005]
[1717424697064,1.55151403,3813.3,3812.8,0.005]
[1717424697227,1.55151403,3813.4,3812.8,0.005]
[1717424698188,1.55151403,3813.4,3812.8,2.62771]
[1717424699486,1.55151403,3813.5,3812.8,2.62771]
[1717424699983,1.55151403,3813.4,3812.8,2.62771]
[1717424700131,2.11841544,3813.4,3813.0,2.62257]
[1717424700331,1.55151403,3813.4,3813.0,2.62257]
[1717424702490,1.55151403,3813.4,3812.8,0.005]
[1717424702774,2.3384,3814.0,3812.8,0.005]
[1717424702775,2.11841544,3813.3,3812.8,0.005]
[1717424703066,1.55151403,3813.1,3812.8,0.005]
[1717424703269,2.11841544,3813.0,3812.9,2.62267]
[1717424703425,1.55151403,3813.2,3812.9,2.62267]
[1717424703829,1.32213922,3813.9,3812.9,2.62267]
[1717424703830,1.55151403,3813.3,3812.9,2.62267]
[1717424704032,1.55151403,3813.3,3813.1,2.62253]
[1717424704475,1.55151403,3813.4,3813.1,2.62253]
[1717424705327,2.1183678,3813.3,3813.1,2.62253]
[1717424705529,1.55151403,3813.3,3813.1,2.62253]
[1717424705763,1.55151403,3813.3,3813.1,3.072383]
[1717424706351,1.55151403,3813.2,3813.1,3.072383]
[1717424707374,0.56685377,3813.6,3813.1,3.072383]
[1717424707528,0.56685377,3813.5,3813.1,2.62253]
[1717424707728,0.56685377,3813.4,3813.1,2.62253]
[1717424707959,0.56685377,3813.3,3813.1,2.62253]
[1717424708147,0.56685377,3813.2,3813.1,2.62253]
[1717424712654,0.56685377,3813.2,3812.8,0.005]
[1717424712885,1.55110396,3812.9,3812.8,0.005]
[1717424713081,0.56694302,3812.9,3812.8,0.005]
[1717424713853,0.67289955,3812.9,3812.8,0.005]
[1717424714296,0.56694302,3812.9,3812.8,0.005]
[1717424714812,0.56694302,3813.2,3812.8,0.005]
[1717424715100,1.21305199,3813.1,3812.8,0.005]
[1717424715287,0.67284958,3813.0,3812.8,0.005]
[1717424715483,0.67284958,3812.9,3812.8,0.005]
[1717424716073,1.21305199,3812.9,3812.8,0.005]
[1717424716271,0.67284958,3812.9,3812.8,0.005]
[1717424716462,1.48066824,3812.9,3812.8,0.005]
[1717424718288,1.06498321,3812.9,3812.8,0.005]
[1717424718994,1.48318221,3812.9,3812.8,0.005]
[1717424719194,1.48318221,3812.9,3812.8,3.077634]
[1717424719469,0.64635227,3812.9,3812.8,3.077634]
[1717424719595,0.10590656,3812.9,3812.8,3.077634]